[Event "Titled Tuesday Blitz February 14 Early 2023"]
[White "Shuvalov, Evgenij"]
[Black "Buscar, Michael"]
[WhiteFideId "4187237"]
[BlackFideId "2603616"]
[WhiteElo "2038"]
[BlackElo "2041"]
[Result "1-0"]
[Round "06"]
[TimeControl "180+2"]
[Date "2023.02.15"]
[WhiteClock "0:00:09"]
[BlackClock "0:00:14"]

1. d4 {[%clk 0:02:56]}  Nf6 {[%clk 0:02:58]} 2. c4 {[%clk 0:02:55]}  e6 {[%clk 0:02:58]} 3. Nc3 {[%clk 0:02:55]}  c5 {[%clk 0:02:58]} 4. d5 {[%clk 0:02:54]}  exd5 {[%clk 0:02:59]} 5. cxd5 {[%clk 0:02:54]}  d6 {[%clk 0:02:59]} 6. e4 {[%clk 0:02:55]}  g6 {[%clk 0:02:59]} 7. f4 {[%clk 0:02:56]}  Bg7 {[%clk 0:02:59]} 8. Bb5+ {[%clk 0:02:56]}  Bd7 {[%clk 0:02:53]} 9. e5 {[%clk 0:02:55]}  Nh5 {[%clk 0:02:33]} 10. Bxd7+ {[%clk 0:01:55]}  Nxd7 {[%clk 0:02:30]} 11. e6 {[%clk 0:01:52]}  Nb6 {[%clk 0:01:50]} 12. exf7+ {[%clk 0:01:47]}  Kxf7 {[%clk 0:01:49]} 13. Nge2 {[%clk 0:01:42]}  Qh4+ {[%clk 0:01:32]} 14. g3 {[%clk 0:01:41]}  Qh3 {[%clk 0:01:30]} 15. Kf2 {[%clk 0:01:40]}  Rae8 {[%clk 0:01:19]} 16. a4 {[%clk 0:01:26]}  Re7 {[%clk 0:01:11]} 17. a5 {[%clk 0:01:25]}  Nc4 {[%clk 0:01:03]} 18. Ra4 {[%clk 0:01:14]}  Ne3 {[%clk 0:00:22]} 19. Bxe3 {[%clk 0:01:10]}  Rhe8 {[%clk 0:00:22]} 20. Bc1 {[%clk 0:00:51]}  Nf6 {[%clk 0:00:21]} 21. Qf1 {[%clk 0:00:34]}  Ng4+ {[%clk 0:00:18]} 22. Kg1 {[%clk 0:00:33]}  Qh5 {[%clk 0:00:16]} 23. Kg2 {[%clk 0:00:22]}  Qf5 {[%clk 0:00:14]} 24. Qf3 {[%clk 0:00:18]}  Ne3+ {[%clk 0:00:12]} 25. Bxe3 {[%clk 0:00:17]}  Rxe3 {[%clk 0:00:13]} 26. Qf2 {[%clk 0:00:16]}  Qc2 {[%clk 0:00:09]} 27. Nc1 {[%clk 0:00:12]}  Qf5 {[%clk 0:00:05]} 28. Rd1 {[%clk 0:00:09]}  Bxc3 {[%clk 0:00:04]} 29. bxc3 {[%clk 0:00:09]}  Rxc3 {[%clk 0:00:04]} 30. Ra2 {[%clk 0:00:08]}  Qg4 {[%clk 0:00:02]} 31. Re2 {[%clk 0:00:07]}  Rd8 {[%clk 0:00:01]} 32. Rde1 {[%clk 0:00:06]}  Rd7 {[%clk 0:00:01]} 33. Re6 {[%clk 0:00:05]}  Qf5 {[%clk 0:00:02]} 34. Qd2 {[%clk 0:00:02]}  Rc2 {[%clk 0:00:02]} 35. R1e2 {[%clk 0:00:01]}  Rxd2 {[%clk 0:00:02]} 36. Rxd2 {[%clk 0:00:02]}  Qxd5+ {[%clk 0:00:02]} 37. Rxd5 {[%clk 0:00:02]}  Kxe6 {[%clk 0:00:03]} 38. Rd2 {[%clk 0:00:03]}  d5 {[%clk 0:00:04]} 39. Nb3 {[%clk 0:00:03]}  d4 {[%clk 0:00:05]} 40. Nxc5+ {[%clk 0:00:03]}  Kd6 {[%clk 0:00:06]} 41. Nxd7 {[%clk 0:00:04]}  Kxd7 {[%clk 0:00:06]} 42. Rxd4+ {[%clk 0:00:04]}  Kc6 {[%clk 0:00:07]} 43. Rd8 {[%clk 0:00:04]}  b6 {[%clk 0:00:08]} 44. Rh8 {[%clk 0:00:05]}  bxa5 {[%clk 0:00:08]} 45. Rxh7 {[%clk 0:00:06]}  a6 {[%clk 0:00:08]} 46. Kf3 {[%clk 0:00:06]}  a4 {[%clk 0:00:09]} 47. Rh6 {[%clk 0:00:06]}  Kb5 {[%clk 0:00:09]} 48. Rxg6 {[%clk 0:00:07]}  a3 {[%clk 0:00:10]} 49. Re6 {[%clk 0:00:07]}  a2 {[%clk 0:00:10]} 50. Re1 {[%clk 0:00:07]}  Kb4 {[%clk 0:00:10]} 51. h4 {[%clk 0:00:08]}  Kb3 {[%clk 0:00:11]} 52. h5 {[%clk 0:00:08]}  Kb2 {[%clk 0:00:12]} 53. h6 {[%clk 0:00:09]}  a1=Q {[%clk 0:00:13]} 54. Rxa1 {[%clk 0:00:09]}  Kxa1 {[%clk 0:00:14]} 55. h7 {[%clk 0:00:09]} 1-0


[Site "https://www.chess.com"]

[Event "Titled Tuesday Blitz February 14 Early 2023"]
[White "Fan_Of_Chucky"]
[Black "Lehtosaari, Mauri"]
[BlackFideId "501999"]
[WhiteElo "2323"]
[BlackElo "2176"]
[Result "1-0"]
[Round "06"]
[TimeControl "180+2"]
[Date "2023.02.15"]
[WhiteClock "0:00:09"]
[BlackClock "0:00:04"]

1. d4 {[%clk 0:03:00]}  d5 {[%clk 0:03:00]} 2. c4 {[%clk 0:03:01]}  c6 {[%clk 0:03:00]} 3. Nf3 {[%clk 0:03:01]}  Nf6 {[%clk 0:03:00]} 4. g3 {[%clk 0:03:02]}  Bg4 {[%clk 0:02:56]} 5. Bg2 {[%clk 0:03:01]}  e6 {[%clk 0:02:56]} 6. h3 {[%clk 0:02:58]}  Bxf3 {[%clk 0:02:55]} 7. Bxf3 {[%clk 0:02:59]}  dxc4 {[%clk 0:02:49]} 8. a4 {[%clk 0:02:50]}  Nbd7 {[%clk 0:02:48]} 9. Qc2 {[%clk 0:02:45]}  a5 {[%clk 0:02:26]} 10. Qxc4 {[%clk 0:02:44]}  Bb4+ {[%clk 0:02:23]} 11. Bd2 {[%clk 0:02:43]}  Nb6 {[%clk 0:02:23]} 12. Qd3 {[%clk 0:02:33]}  Bxd2+ {[%clk 0:02:22]} 13. Nxd2 {[%clk 0:02:34]}  Nbd5 {[%clk 0:02:22]} 14. O-O {[%clk 0:02:30]}  O-O {[%clk 0:02:21]} 15. Ne4 {[%clk 0:02:28]}  Nb4 {[%clk 0:02:19]} 16. Nxf6+ {[%clk 0:02:26]}  Qxf6 {[%clk 0:02:18]} 17. Qc3 {[%clk 0:02:11]}  Rfd8 {[%clk 0:02:18]} 18. Rfd1 {[%clk 0:02:10]}  g6 {[%clk 0:02:15]} 19. Bg2 {[%clk 0:02:08]}  Rd7 {[%clk 0:02:01]} 20. Qc5 {[%clk 0:02:01]}  Qe7 {[%clk 0:01:51]} 21. Qxe7 {[%clk 0:01:53]}  Rxe7 {[%clk 0:01:52]} 22. Rac1 {[%clk 0:01:50]}  Rd7 {[%clk 0:01:48]} 23. e3 {[%clk 0:01:50]}  Kf8 {[%clk 0:01:40]} 24. Kf1 {[%clk 0:01:49]}  Ke7 {[%clk 0:01:28]} 25. Ke2 {[%clk 0:01:48]}  Kd8 {[%clk 0:01:28]} 26. Rc3 {[%clk 0:01:41]}  Kc7 {[%clk 0:01:27]} 27. Rdc1 {[%clk 0:01:35]}  Kb6 {[%clk 0:01:26]} 28. Rd1 {[%clk 0:01:27]}  Rad8 {[%clk 0:01:25]} 29. f4 {[%clk 0:01:22]}  f6 {[%clk 0:01:23]} 30. Rcc1 {[%clk 0:01:15]}  h6 {[%clk 0:01:07]} 31. g4 {[%clk 0:01:12]}  f5 {[%clk 0:01:03]} 32. Bf3 {[%clk 0:01:07]}  Re7 {[%clk 0:00:59]} 33. Rg1 {[%clk 0:00:59]}  Rh8 {[%clk 0:00:58]} 34. h4 {[%clk 0:00:54]}  Kc7 {[%clk 0:00:46]} 35. gxf5 {[%clk 0:00:47]}  gxf5 {[%clk 0:00:24]} 36. Rg6 {[%clk 0:00:46]}  Rhh7 {[%clk 0:00:20]} 37. h5 {[%clk 0:00:38]}  Kd6 {[%clk 0:00:20]} 38. Rc5 {[%clk 0:00:38]}  b6 {[%clk 0:00:20]} 39. Rxf5 {[%clk 0:00:38]}  Rhg7 {[%clk 0:00:17]} 40. Rff6 {[%clk 0:00:36]}  Rxg6 {[%clk 0:00:16]} 41. Rxg6 {[%clk 0:00:34]}  Rh7 {[%clk 0:00:16]} 42. f5 {[%clk 0:00:32]}  c5 {[%clk 0:00:09]} 43. Rxe6+ {[%clk 0:00:31]}  Kc7 {[%clk 0:00:10]} 44. dxc5 {[%clk 0:00:28]}  bxc5 {[%clk 0:00:10]} 45. Rg6 {[%clk 0:00:27]}  Rf7 {[%clk 0:00:04]} 46. Be4 {[%clk 0:00:23]}  Kd7 {[%clk 0:00:01]} 47. Rxh6 {[%clk 0:00:20]}  Ke7 {[%clk 0:00:02]} 48. Re6+ {[%clk 0:00:20]}  Kf8 {[%clk 0:00:02]} 49. h6 {[%clk 0:00:20]}  Rh7 {[%clk 0:00:03]} 50. Rg6 {[%clk 0:00:17]}  Kf7 {[%clk 0:00:03]} 51. Rg7+ {[%clk 0:00:17]}  Rxg7 {[%clk 0:00:04]} 52. hxg7 {[%clk 0:00:18]}  Kxg7 {[%clk 0:00:05]} 53. Kd2 {[%clk 0:00:17]}  Kf6 {[%clk 0:00:05]} 54. Kc3 {[%clk 0:00:17]}  Ke5 {[%clk 0:00:04]} 55. Bb1 {[%clk 0:00:16]}  Kd6 {[%clk 0:00:05]} 56. Kc4 {[%clk 0:00:15]}  Nd5 {[%clk 0:00:05]} 57. e4 {[%clk 0:00:13]}  Nb6+ {[%clk 0:00:05]} 58. Kb5 {[%clk 0:00:13]}  Nd7 {[%clk 0:00:05]} 59. Kxa5 {[%clk 0:00:13]}  Kc6 {[%clk 0:00:05]} 60. Ba2 {[%clk 0:00:10]}  Ne5 {[%clk 0:00:04]} 61. Bd5+ {[%clk 0:00:10]}  Kd6 {[%clk 0:00:05]} 62. f6 {[%clk 0:00:08]}  Nd7 {[%clk 0:00:04]} 63. f7 {[%clk 0:00:07]}  Nf8 {[%clk 0:00:03]} 64. Kb5 {[%clk 0:00:07]}  Nd7 {[%clk 0:00:03]} 65. a5 {[%clk 0:00:08]}  Nf8 {[%clk 0:00:02]} 66. a6 {[%clk 0:00:08]}  Nd7 {[%clk 0:00:02]} 67. a7 {[%clk 0:00:09]}  Ke5 {[%clk 0:00:02]} 68. a8=Q {[%clk 0:00:09]}  Kd4 {[%clk 0:00:02]} 69. f8=Q {[%clk 0:00:08]}  Ne5 {[%clk 0:00:02]} 70. Qf6 {[%clk 0:00:08]}  Kd3 {[%clk 0:00:02]} 71. Qxe5 {[%clk 0:00:09]}  Kc2 {[%clk 0:00:03]} 72. Qc3+ {[%clk 0:00:09]}  Kb1 {[%clk 0:00:04]} 73. Qa1+ {[%clk 0:00:09]}  Kxa1 {[%clk 0:00:03]} 74. b4+ {[%clk 0:00:09]}  Kb1 {[%clk 0:00:03]} 75. e5 {[%clk 0:00:09]}  cxb4 {[%clk 0:00:04]} 76. Be4+ {[%clk 0:00:10]}  Ka2 {[%clk 0:00:04]} 77. Qc2+ {[%clk 0:00:09]}  Ka3 {[%clk 0:00:04]} 78. Bd5 {[%clk 0:00:08]}  b3 {[%clk 0:00:04]} 79. Qxb3# {[%clk 0:00:09]} 1-0


[Site "https://www.chess.com"]

[Event "Titled Tuesday Blitz February 14 Early 2023"]
[White "Ramirez Allo, Eduardo"]
[Black "Dong, Khanh Linh"]
[WhiteFideId "2224178"]
[BlackFideId "12403040"]
[WhiteElo "2274"]
[BlackElo "1900"]
[Result "1-0"]
[Round "06"]
[TimeControl "180+2"]
[Date "2023.02.15"]
[WhiteClock "0:00:24"]
[BlackClock "0:00:12"]

1. d4 {[%clk 0:03:00]}  Nf6 {[%clk 0:02:58]} 2. c4 {[%clk 0:03:01]}  d5 {[%clk 0:02:57]} 3. Nf3 {[%clk 0:03:01]}  g6 {[%clk 0:02:57]} 4. g3 {[%clk 0:03:01]}  Bg7 {[%clk 0:02:57]} 5. Bg2 {[%clk 0:03:02]}  O-O {[%clk 0:02:56]} 6. O-O {[%clk 0:03:02]}  dxc4 {[%clk 0:02:54]} 7. Nbd2 {[%clk 0:03:02]}  c3 {[%clk 0:02:43]} 8. bxc3 {[%clk 0:03:02]}  c5 {[%clk 0:02:42]} 9. e3 {[%clk 0:03:01]}  Nc6 {[%clk 0:02:41]} 10. Ba3 {[%clk 0:03:00]}  cxd4 {[%clk 0:02:39]} 11. cxd4 {[%clk 0:03:01]}  Qa5 {[%clk 0:02:37]} 12. Nc4 {[%clk 0:02:55]}  Qa6 {[%clk 0:02:35]} 13. Nfd2 {[%clk 0:02:34]}  b5 {[%clk 0:02:20]} 14. Ne5 {[%clk 0:02:33]}  Bb7 {[%clk 0:01:20]} 15. Nxc6 {[%clk 0:02:33]}  Bxc6 {[%clk 0:01:20]} 16. Bxc6 {[%clk 0:02:33]}  Qxc6 {[%clk 0:01:14]} 17. Bxe7 {[%clk 0:02:34]}  Rfe8 {[%clk 0:01:14]} 18. Bxf6 {[%clk 0:02:28]}  Bxf6 {[%clk 0:01:14]} 19. Qb3 {[%clk 0:02:28]}  a6 {[%clk 0:01:10]} 20. Rfc1 {[%clk 0:02:28]}  Qd7 {[%clk 0:01:07]} 21. Rc2 {[%clk 0:02:16]}  Rac8 {[%clk 0:01:04]} 22. Rac1 {[%clk 0:02:16]}  Qf5 {[%clk 0:01:04]} 23. Rxc8 {[%clk 0:01:39]}  Rxc8 {[%clk 0:01:02]} 24. Rxc8+ {[%clk 0:01:39]}  Qxc8 {[%clk 0:01:00]} 25. Ne4 {[%clk 0:01:40]}  Be7 {[%clk 0:00:52]} 26. Qd5 {[%clk 0:01:39]}  Qc1+ {[%clk 0:00:22]} 27. Kg2 {[%clk 0:01:39]}  Qa3 {[%clk 0:00:22]} 28. h4 {[%clk 0:01:35]}  h5 {[%clk 0:00:21]} 29. Nc5 {[%clk 0:00:57]}  Qa5 {[%clk 0:00:17]} 30. Qa8+ {[%clk 0:00:55]}  Kg7 {[%clk 0:00:17]} 31. Qxa6 {[%clk 0:00:55]}  Qb4 {[%clk 0:00:15]} 32. Qa7 {[%clk 0:00:41]}  Bf6 {[%clk 0:00:13]} 33. Ne4 {[%clk 0:00:36]}  Qc4 {[%clk 0:00:13]} 34. Nxf6 {[%clk 0:00:26]}  Kxf6 {[%clk 0:00:13]} 35. Qc5 {[%clk 0:00:25]}  Qxa2 {[%clk 0:00:12]} 36. Qe5# {[%clk 0:00:24]} 1-0


[Site "https://www.chess.com"]

[Event "Titled Tuesday Blitz February 14 Early 2023"]
[White "Khamdamova, Afruza"]
[Black "Gharamian, Tigran"]
[WhiteFideId "14210444"]
[BlackFideId "13301527"]
[WhiteElo "2162"]
[BlackElo "2601"]
[Result "1-0"]
[Round "06"]
[TimeControl "180+2"]
[Date "2023.02.15"]
[WhiteClock "0:00:04"]
[BlackClock "0:00:01"]

1. e4 {[%clk 0:03:00]}  c6 {[%clk 0:03:00]} 2. d4 {[%clk 0:03:01]}  d5 {[%clk 0:03:01]} 3. Nc3 {[%clk 0:03:01]}  dxe4 {[%clk 0:03:00]} 4. Nxe4 {[%clk 0:03:02]}  Nf6 {[%clk 0:03:01]} 5. Nxf6+ {[%clk 0:03:02]}  exf6 {[%clk 0:03:02]} 6. c3 {[%clk 0:03:03]}  Bd6 {[%clk 0:03:02]} 7. Bd3 {[%clk 0:03:03]}  O-O {[%clk 0:03:02]} 8. Qc2 {[%clk 0:03:04]}  Re8+ {[%clk 0:03:01]} 9. Ne2 {[%clk 0:03:04]}  h5 {[%clk 0:03:01]} 10. Be3 {[%clk 0:03:03]}  Nd7 {[%clk 0:02:54]} 11. O-O-O {[%clk 0:03:02]}  h4 {[%clk 0:02:49]} 12. h3 {[%clk 0:02:52]}  Nf8 {[%clk 0:02:45]} 13. c4 {[%clk 0:02:51]}  b5 {[%clk 0:02:14]} 14. c5 {[%clk 0:02:39]}  Bc7 {[%clk 0:02:11]} 15. d5 {[%clk 0:02:38]}  cxd5 {[%clk 0:02:04]} 16. Bxb5 {[%clk 0:02:38]}  Re5 {[%clk 0:01:39]} 17. Bc6 {[%clk 0:02:37]}  Rb8 {[%clk 0:01:37]} 18. Nc3 {[%clk 0:02:36]}  Bf5 {[%clk 0:01:36]} 19. Qd2 {[%clk 0:02:32]}  Ba5 {[%clk 0:01:27]} 20. Bf4 {[%clk 0:02:10]}  Ng6 {[%clk 0:01:27]} 21. Bxe5 {[%clk 0:02:07]}  Nxe5 {[%clk 0:01:28]} 22. Qxd5 {[%clk 0:01:43]}  Qc7 {[%clk 0:01:28]} 23. Nb5 {[%clk 0:01:36]}  Qxc6 {[%clk 0:01:26]} 24. Qxc6 {[%clk 0:01:27]}  Nxc6 {[%clk 0:01:27]} 25. Nd6 {[%clk 0:01:25]}  Be6 {[%clk 0:01:21]} 26. a3 {[%clk 0:01:18]}  Rb3 {[%clk 0:00:58]} 27. f4 {[%clk 0:01:03]}  Rg3 {[%clk 0:00:51]} 28. Rhg1 {[%clk 0:00:36]}  Bb3 {[%clk 0:00:46]} 29. Rdf1 {[%clk 0:00:31]}  Nd4 {[%clk 0:00:45]} 30. Rf2 {[%clk 0:00:30]}  Re3 {[%clk 0:00:38]} 31. Kb1 {[%clk 0:00:17]}  Ne2 {[%clk 0:00:32]} 32. Rgf1 {[%clk 0:00:16]}  Kf8 {[%clk 0:00:24]} 33. c6 {[%clk 0:00:16]}  Nd4 {[%clk 0:00:21]} 34. Rc1 {[%clk 0:00:13]}  Bc7 {[%clk 0:00:18]} 35. Nc4 {[%clk 0:00:11]}  Re2 {[%clk 0:00:09]} 36. Rff1 {[%clk 0:00:09]}  Bc2+ {[%clk 0:00:07]} 37. Ka2 {[%clk 0:00:08]}  Bb3+ {[%clk 0:00:07]} 38. Kb1 {[%clk 0:00:08]}  Rxg2 {[%clk 0:00:06]} 39. Ne3 {[%clk 0:00:07]}  Re2 {[%clk 0:00:05]} 40. Nc4 {[%clk 0:00:07]}  Rh2 {[%clk 0:00:04]} 41. Rc3 {[%clk 0:00:04]}  Bc2+ {[%clk 0:00:01]} 42. Ka2 {[%clk 0:00:04]} 1-0


[Site "https://www.chess.com"]

[Event "Titled Tuesday Blitz February 14 Early 2023"]
[White "Meera, Sai"]
[Black "Kochetov, Andrey"]
[WhiteFideId "5004357"]
[BlackFideId "24130532"]
[WhiteElo "2064"]
[BlackElo "2165"]
[Result "0-1"]
[Round "06"]
[TimeControl "180+2"]
[Date "2023.02.15"]
[WhiteClock "0:00:01"]
[BlackClock "0:00:02"]

1. e4 {[%clk 0:03:00]}  c5 {[%clk 0:03:00]} 2. Nf3 {[%clk 0:03:00]}  d6 {[%clk 0:03:01]} 3. d4 {[%clk 0:03:00]}  cxd4 {[%clk 0:03:01]} 4. Nxd4 {[%clk 0:03:01]}  Nf6 {[%clk 0:03:01]} 5. Nc3 {[%clk 0:03:01]}  Nc6 {[%clk 0:03:02]} 6. Bg5 {[%clk 0:03:00]}  e6 {[%clk 0:03:02]} 7. Qd2 {[%clk 0:02:59]}  a6 {[%clk 0:03:01]} 8. O-O-O {[%clk 0:02:59]}  Bd7 {[%clk 0:03:00]} 9. f3 {[%clk 0:02:56]}  Be7 {[%clk 0:02:59]} 10. Kb1 {[%clk 0:02:55]}  h6 {[%clk 0:02:51]} 11. Be3 {[%clk 0:02:50]}  b5 {[%clk 0:02:50]} 12. Nxc6 {[%clk 0:02:48]}  Bxc6 {[%clk 0:02:50]} 13. Ne2 {[%clk 0:02:49]}  d5 {[%clk 0:02:46]} 14. e5 {[%clk 0:02:46]}  Nd7 {[%clk 0:02:46]} 15. f4 {[%clk 0:02:44]}  Nc5 {[%clk 0:02:21]} 16. Nd4 {[%clk 0:02:43]}  Rc8 {[%clk 0:02:16]} 17. g4 {[%clk 0:02:34]}  Ne4 {[%clk 0:02:15]} 18. Qe2 {[%clk 0:02:22]}  Bc5 {[%clk 0:02:14]} 19. Bg2 {[%clk 0:02:15]}  Qb6 {[%clk 0:02:01]} 20. f5 {[%clk 0:01:57]}  Bb7 {[%clk 0:01:33]} 21. Bxe4 {[%clk 0:01:46]}  dxe4 {[%clk 0:01:33]} 22. fxe6 {[%clk 0:01:46]}  fxe6 {[%clk 0:01:33]} 23. Rhf1 {[%clk 0:01:46]}  Rf8 {[%clk 0:01:25]} 24. g5 {[%clk 0:01:38]}  Rxf1 {[%clk 0:01:15]} 25. Qh5+ {[%clk 0:01:28]}  Rf7 {[%clk 0:01:14]} 26. gxh6 {[%clk 0:01:17]}  gxh6 {[%clk 0:00:54]} 27. Qxh6 {[%clk 0:01:14]}  Rd8 {[%clk 0:00:24]} 28. Qh8+ {[%clk 0:01:07]}  Bf8 {[%clk 0:00:22]} 29. c3 {[%clk 0:01:03]}  b4 {[%clk 0:00:18]} 30. c4 {[%clk 0:00:33]}  Qc7 {[%clk 0:00:19]} 31. b3 {[%clk 0:00:31]}  Rh7 {[%clk 0:00:18]} 32. Qg8 {[%clk 0:00:29]}  Qf7 {[%clk 0:00:18]} 33. Qg4 {[%clk 0:00:27]}  Bc5 {[%clk 0:00:17]} 34. Kc2 {[%clk 0:00:18]}  Rxh2+ {[%clk 0:00:16]} 35. Kb1 {[%clk 0:00:16]}  Rh7 {[%clk 0:00:10]} 36. Qg1 {[%clk 0:00:11]}  Rg7 {[%clk 0:00:09]} 37. Qh1 {[%clk 0:00:09]}  Bxd4 {[%clk 0:00:07]} 38. Bxd4 {[%clk 0:00:09]}  e3 {[%clk 0:00:08]} 39. Qh8+ {[%clk 0:00:07]}  Rg8 {[%clk 0:00:08]} 40. Qh4 {[%clk 0:00:06]}  Qf5+ {[%clk 0:00:04]} 41. Ka1 {[%clk 0:00:06]}  e2 {[%clk 0:00:04]} 42. Re1 {[%clk 0:00:01]}  Qd3 {[%clk 0:00:02]} 0-1


[Site "https://www.chess.com"]

[Event "Titled Tuesday Blitz February 14 Early 2023"]
[White "Martin, Lewis"]
[Black "Andreev, Konstantin"]
[WhiteFideId "410551"]
[BlackFideId "24239305"]
[WhiteElo "2135"]
[BlackElo "2195"]
[Result "1-0"]
[Round "06"]
[TimeControl "180+2"]
[Date "2023.02.15"]
[WhiteClock "0:00:08"]
[BlackClock "0:00:11"]

1. e4 {[%clk 0:03:00]}  c5 {[%clk 0:02:59]} 2. Nf3 {[%clk 0:03:01]}  e6 {[%clk 0:03:00]} 3. d4 {[%clk 0:03:01]}  cxd4 {[%clk 0:03:00]} 4. Nxd4 {[%clk 0:03:01]}  Nc6 {[%clk 0:03:01]} 5. Nc3 {[%clk 0:03:01]}  Qc7 {[%clk 0:03:02]} 6. g3 {[%clk 0:03:00]}  a6 {[%clk 0:03:00]} 7. Bg2 {[%clk 0:02:59]}  Nf6 {[%clk 0:03:01]} 8. Nde2 {[%clk 0:02:57]}  h6 {[%clk 0:02:59]} 9. O-O {[%clk 0:02:55]}  Be7 {[%clk 0:02:59]} 10. h3 {[%clk 0:02:53]}  O-O {[%clk 0:02:58]} 11. Bf4 {[%clk 0:02:46]}  d6 {[%clk 0:02:58]} 12. Qd2 {[%clk 0:02:44]}  b5 {[%clk 0:02:57]} 13. a3 {[%clk 0:02:37]}  Bb7 {[%clk 0:02:55]} 14. Rad1 {[%clk 0:02:37]}  Rfd8 {[%clk 0:02:50]} 15. Bxh6 {[%clk 0:02:31]}  gxh6 {[%clk 0:02:48]} 16. Qxh6 {[%clk 0:02:32]}  Nh7 {[%clk 0:02:48]} 17. Nf4 {[%clk 0:02:26]}  Bg5 {[%clk 0:02:27]} 18. Qh5 {[%clk 0:02:26]}  Ne7 {[%clk 0:02:22]} 19. Qg4 {[%clk 0:02:09]}  Kh8 {[%clk 0:02:18]} 20. Nh5 {[%clk 0:01:59]}  Rg8 {[%clk 0:02:08]} 21. Qf3 {[%clk 0:01:47]}  Ng6 {[%clk 0:02:04]} 22. Qe2 {[%clk 0:01:40]}  Qc5 {[%clk 0:01:56]} 23. Kh2 {[%clk 0:01:33]}  Bh6 {[%clk 0:01:30]} 24. f4 {[%clk 0:01:26]}  Ne7 {[%clk 0:01:12]} 25. f5 {[%clk 0:01:12]}  exf5 {[%clk 0:01:08]} 26. exf5 {[%clk 0:01:12]}  Bxg2 {[%clk 0:01:06]} 27. Qxg2 {[%clk 0:01:11]}  Rac8 {[%clk 0:00:35]} 28. Qe4 {[%clk 0:00:46]}  Qe5 {[%clk 0:00:24]} 29. Qxe5+ {[%clk 0:00:38]}  dxe5 {[%clk 0:00:24]} 30. Rd7 {[%clk 0:00:38]}  Rge8 {[%clk 0:00:22]} 31. f6 {[%clk 0:00:28]}  Nc6 {[%clk 0:00:22]} 32. Rxf7 {[%clk 0:00:26]}  Ng5 {[%clk 0:00:22]} 33. Rd7 {[%clk 0:00:21]}  Nd4 {[%clk 0:00:20]} 34. h4 {[%clk 0:00:10]}  Ngf3+ {[%clk 0:00:19]} 35. Kg2 {[%clk 0:00:10]}  e4 {[%clk 0:00:20]} 36. g4 {[%clk 0:00:10]}  Bd2 {[%clk 0:00:18]} 37. g5 {[%clk 0:00:09]}  Nxh4+ {[%clk 0:00:14]} 38. Kh3 {[%clk 0:00:08]}  Ndf5 {[%clk 0:00:12]} 39. Kg4 {[%clk 0:00:08]}  Ne3+ {[%clk 0:00:12]} 40. Kxh4 {[%clk 0:00:07]}  Nxf1 {[%clk 0:00:12]} 41. g6 {[%clk 0:00:08]}  Rg8 {[%clk 0:00:11]} 42. Rh7# {[%clk 0:00:08]} 1-0


[Site "https://www.chess.com"]

[Event "Titled Tuesday Blitz February 14 Early 2023"]
[White "Nguyen Hong Nhung"]
[Black "Clawitter, Craig"]
[WhiteFideId "12412201"]
[BlackFideId "2023105"]
[WhiteElo "2003"]
[BlackElo "2050"]
[Result "1-0"]
[Round "06"]
[TimeControl "180+2"]
[Date "2023.02.15"]
[WhiteClock "0:00:56"]
[BlackClock "0:00:04"]

1. e4 {[%clk 0:03:00]}  e6 {[%clk 0:02:58]} 2. d4 {[%clk 0:03:00]}  d5 {[%clk 0:02:56]} 3. exd5 {[%clk 0:03:00]}  exd5 {[%clk 0:02:56]} 4. Bd3 {[%clk 0:03:01]}  Bd6 {[%clk 0:02:56]} 5. Qf3 {[%clk 0:03:01]}  c6 {[%clk 0:02:45]} 6. Ne2 {[%clk 0:03:00]}  Nf6 {[%clk 0:02:45]} 7. h3 {[%clk 0:03:00]}  O-O {[%clk 0:02:42]} 8. O-O {[%clk 0:03:01]}  Nbd7 {[%clk 0:02:41]} 9. Bf4 {[%clk 0:03:01]}  Bxf4 {[%clk 0:02:40]} 10. Nxf4 {[%clk 0:03:02]}  Re8 {[%clk 0:02:39]} 11. Nd2 {[%clk 0:03:02]}  Nf8 {[%clk 0:02:40]} 12. Rfe1 {[%clk 0:03:00]}  Ng6 {[%clk 0:02:26]} 13. Nh5 {[%clk 0:02:38]}  Nxh5 {[%clk 0:02:17]} 14. Qxh5 {[%clk 0:02:39]}  Bd7 {[%clk 0:01:58]} 15. Nf3 {[%clk 0:02:37]}  Qf6 {[%clk 0:01:51]} 16. Ne5 {[%clk 0:02:32]}  Be6 {[%clk 0:01:32]} 17. Re3 {[%clk 0:02:27]}  Nf8 {[%clk 0:01:08]} 18. Rae1 {[%clk 0:02:01]}  g6 {[%clk 0:01:08]} 19. Qh6 {[%clk 0:01:55]}  Qg7 {[%clk 0:00:57]} 20. Qh4 {[%clk 0:01:51]}  Nd7 {[%clk 0:00:49]} 21. Ng4 {[%clk 0:01:32]}  h5 {[%clk 0:00:42]} 22. Ne5 {[%clk 0:01:28]}  Nxe5 {[%clk 0:00:37]} 23. Rxe5 {[%clk 0:01:29]}  Bd7 {[%clk 0:00:26]} 24. Re7 {[%clk 0:01:05]}  Qf8 {[%clk 0:00:15]} 25. Qf6 {[%clk 0:00:57]}  Rxe7 {[%clk 0:00:10]} 26. Rxe7 {[%clk 0:00:58]}  Rd8 {[%clk 0:00:04]} 27. Bxg6 {[%clk 0:00:56]} 1-0


[Site "https://www.chess.com"]

[Event "Titled Tuesday Blitz February 14 Early 2023"]
[White "Dragomirescu, Angela"]
[Black "Smietanska, Wiktoria"]
[WhiteFideId "1209914"]
[BlackFideId "21869359"]
[WhiteElo "2130"]
[BlackElo "1936"]
[Result "1-0"]
[Round "06"]
[TimeControl "180+2"]
[Date "2023.02.15"]
[WhiteClock "0:00:13"]
[BlackClock "0:00:01"]

1. e4 {[%clk 0:03:00]}  c5 {[%clk 0:02:59]} 2. Nf3 {[%clk 0:02:59]}  d6 {[%clk 0:02:59]} 3. d4 {[%clk 0:02:59]}  cxd4 {[%clk 0:02:59]} 4. Nxd4 {[%clk 0:03:00]}  Nf6 {[%clk 0:02:58]} 5. Nc3 {[%clk 0:03:00]}  a6 {[%clk 0:02:59]} 6. Bg5 {[%clk 0:03:01]}  Nbd7 {[%clk 0:02:58]} 7. Qe2 {[%clk 0:03:02]}  e6 {[%clk 0:02:55]} 8. O-O-O {[%clk 0:03:01]}  Be7 {[%clk 0:02:55]} 9. f4 {[%clk 0:03:01]}  O-O {[%clk 0:02:55]} 10. h4 {[%clk 0:02:33]}  h6 {[%clk 0:02:43]} 11. g4 {[%clk 0:02:27]}  e5 {[%clk 0:02:26]} 12. Nf5 {[%clk 0:02:22]}  Nc5 {[%clk 0:02:09]} 13. fxe5 {[%clk 0:02:11]}  hxg5 {[%clk 0:02:01]} 14. hxg5 {[%clk 0:02:07]}  Nh7 {[%clk 0:01:54]} 15. Qh2 {[%clk 0:01:08]}  Bxg5+ {[%clk 0:01:51]} 16. Kb1 {[%clk 0:01:08]}  Bxf5 {[%clk 0:01:50]} 17. gxf5 {[%clk 0:01:09]}  Bh6 {[%clk 0:01:50]} 18. Rxd6 {[%clk 0:01:10]}  Qg5 {[%clk 0:01:48]} 19. Bc4 {[%clk 0:01:07]}  b5 {[%clk 0:01:25]} 20. Bd5 {[%clk 0:01:01]}  Rad8 {[%clk 0:01:24]} 21. Rg6 {[%clk 0:01:01]}  Qe3 {[%clk 0:01:03]} 22. Qg2 {[%clk 0:00:28]}  Kh8 {[%clk 0:00:57]} 23. Rg3 {[%clk 0:00:20]}  Qf4 {[%clk 0:00:06]} 24. f6 {[%clk 0:00:20]}  Rg8 {[%clk 0:00:02]} 25. Bxf7 {[%clk 0:00:17]}  Qd2 {[%clk 0:00:01]} 26. Qh3 {[%clk 0:00:13]} 1-0


[Site "https://www.chess.com"]